fUSD/lending_fUSD_20240419
["ID","MTS","AMOUNT","RATE_DAILY","PERIOD"]
[322970242,1713549073665,-500.0,0.00016712,2]
[322970243,1713549073675,-511.66,0.00016712,2]
[322970244,1713549073685,-500.0,0.00016712,2]
[322970245,1713549073695,-500.0,0.00016712,2]
[322970246,1713549073705,-1122.38,0.00016712,2]
[322970247,1713549073714,-1761.97,0.00016712,2]
[322970248,1713549073724,-604.16871508,0.00016712,2]
[322970249,1713549073734,-500.0,0.00016712,2]
[322970250,1713549073743,-543.09,0.00016712,2]
[322970251,1713549073754,-151.325764,0.00016712,2]
[322970252,1713549073765,-500.0,0.00016712,2]
[322970253,1713549073775,-500.0,0.00016712,2]
[322970254,1713549073785,-693.35,0.00016712,2]
[322970255,1713549073795,-1319.07,0.00016712,2]
[322970256,1713549073808,-500.0,0.00016712,2]
[322970257,1713549073820,-500.0,0.00016712,2]
[322970258,1713549073833,-500.0,0.00016712,2]
[322970259,1713549073843,-1068.12,0.00016712,2]
[322970260,1713549073854,-1261.46,0.00016712,2]
[322970261,1713549073865,-1052.45,0.00016712,2]
[322970262,1713549073876,-151.0,0.00016712,2]
[322970263,1713549073886,-1559.04,0.00016712,2]
[322970264,1713549073897,-151.0,0.00016712,2]
[322970265,1713549073907,-500.0,0.00016712,2]
[322970266,1713549073918,-500.0,0.00016712,2]
[322970267,1713549073928,-151.0,0.00016712,2]
[322970268,1713549073938,-1664.37,0.00016712,2]
[322970269,1713549073948,-899.68,0.00016712,2]
[322970270,1713549073959,-500.0,0.00016712,2]
[322970271,1713549073969,-151.0,0.00016712,2]
[322970272,1713549073979,-1172.44,0.00016712,2]
[322970273,1713549073989,-500.0,0.00016712,2]
[322970274,1713549074000,-500.0,0.00016712,2]
[322970275,1713549074010,-500.0,0.00016712,2]
[322970276,1713549074021,-575.21,0.00016712,2]
[322970277,1713549074031,-500.0,0.00016712,2]
[322970278,1713549074042,-500.0,0.00016712,2]
[322970279,1713549074054,-1150.98,0.00016712,2]
[322970280,1713549074069,-500.0,0.00016712,2]
[322970281,1713549074080,-2038.97,0.00016712,2]
[322970282,1713549074090,-500.0,0.00016712,2]
[322970283,1713549074101,-508.24,0.00016712,2]
[322970284,1713549074111,-151.0,0.00016712,2]
[322970285,1713549074121,-1584.33,0.00016712,2]
[322970286,1713549074130,-559.27,0.00016712,2]
[322970287,1713549074140,-1766.47,0.00016712,2]
[322970288,1713549074150,-500.0,0.00016712,2]
[322970289,1713549074160,-151.156276,0.00016712,2]
[322970290,1713549074171,-828.69,0.00016712,2]
[322970291,1713549074181,-730.45,0.00016712,2]
[322970292,1713549074192,-151.0,0.00016712,2]
[322970293,1713549074203,-500.0,0.00016712,2]
[322970294,1713549074213,-2384.04,0.00016712,2]
[322970295,1713549074223,-14.64007613,0.00016712,2]
[322970296,1713549074965,-485.35992387,0.00016712,2]
[322970297,1713549074975,-174.23736597,0.00016712,2]
[322970298,1713549075954,-306.21779093,0.00016712,2]
[322970299,1713549075966,-483.87719183,0.00016712,2]
[322970300,1713549075978,-424.63765127,0.00016712,2]
[322970301,1713549075989,-500.0,0.00016712,2]
[322970302,1713549075999,-500.0,0.00016712,2]
[322970303,1713549076009,-500.0,0.00016712,2]
[322970304,1713549076019,-500.0,0.00016712,2]
[322970305,1713549076028,-500.0,0.00016712,2]
[322970306,1713549076039,-880.55,0.00016712,2]
[322970307,1713549076048,-1427.08,0.00016712,2]
[322970308,1713549076060,-500.0,0.00016712,2]
[322970309,1713549076070,-500.0,0.00016712,2]
[322970310,1713549076080,-501.3,0.00016712,2]
[322970311,1713549076091,-791.77,0.00016712,2]
[322970312,1713549076101,-596.76,0.00016712,2]
[322970313,1713549076112,-596.13,0.00016712,2]
[322970314,1713549076122,-500.0,0.00016712,2]
[322970315,1713549076132,-500.0,0.00016712,2]
[322970316,1713549076142,-500.0,0.00016712,2]
[322970317,1713549076152,-500.0,0.00016712,2]
[322970318,1713549076162,-857.33,0.00016712,2]
[322970319,1713549076171,-500.0,0.00016712,2]
[322970320,1713549076181,-500.0,0.00016712,2]
[322970321,1713549076190,-224.27,0.00016712,2]
[322970322,1713549076199,-2387.27,0.00016712,2]
[322970323,1713549076209,-1299.18,0.00016712,2]
[322970324,1713549076218,-500.0,0.00016712,2]
[322970325,1713549076227,-530.39,0.00016712,2]
[322970326,1713549076236,-500.0,0.00016712,2]
[322970327,1713549076245,-896.05,0.00016712,2]
[322970328,1713549076255,-500.0,0.00016712,2]
[322970329,1713549076264,-906.55,0.00016712,2]
[322970330,1713549076273,-500.0,0.00016712,2]
[322970331,1713549076283,-935.93,0.00016712,2]
[322970332,1713549076293,-500.0,0.00016712,2]
[322970333,1713549076303,-2107.61,0.00016712,2]
[322970334,1713549076314,-500.0,0.00016712,2]
[322970335,1713549076323,-1681.74,0.00016712,2]
[322970336,1713549076333,-666.62,0.00016712,2]
[322970337,1713549076342,-500.0,0.00016712,2]
[322970338,1713549076351,-789.3,0.00016712,2]
[322970339,1713549076361,-766.82,0.00016712,2]
[322970340,1713549076371,-2958.7,0.00016712,2]
[322970341,1713549076380,-2068.77,0.00016712,2]
[322970342,1713549076390,-500.0,0.00016712,2]
[322970343,1713549076399,-500.0,0.00016712,2]
[322970344,1713549076409,-1136.17,0.00016712,2]
[322970345,1713549076420,-534.9,0.00016712,2]
[322970346,1713549076430,-574.51,0.00016712,2]
[322970347,1713549076440,-345.80391841,0.00016712,2]
[322970348,1713549076455,-359.48608159,0.00016712,2]
[322970349,1713549076465,-546.24163598,0.00016712,2]
[322970350,1713549076478,-207.91836402,0.00016712,2]
[322970351,1713549076488,-756.14560858,0.00016712,2]
[322970352,1713549076506,-130.47439142,0.00016712,2]
[322970353,1713549076520,-1241.42338858,0.00016712,2]
[322970354,1713549076564,-500.0,0.00016438,2]
[322970355,1713549076584,-130.96661142,0.00016712,2]
[322970356,1713549076595,-185.26611358,0.00016712,2]
[322970357,1713549076799,-641.89388642,0.00016712,2]
[322970358,1713549076825,-500.0,0.00016712,2]
[322970359,1713549076837,-236.97272229,0.00016712,2]
[322970370,1713549331968,-253.24896727,0.00012911,2]
[322970371,1713549331990,-1746.75103273,0.00013306,2]
[322970372,1713549332685,-1252.09825777,0.00013306,2]
[322970373,1713549332706,-664.0,0.00013307,2]
[322970374,1713549344583,83.90174223,0.0001291,2]
[322970375,1713549344604,1000.0,0.0001291,2]
[322970376,1713549559338,967.01,0.00010701,2]
[322970377,1713549718041,257.92717665,0.00010701,2]
[322970378,1713549732307,942.44752511,0.00010701,2]
[322970379,1713549739965,336.09049238,0.00010701,2]
[322970380,1713549752277,259.14077489,0.00010701,2]
[322970382,1713549912279,227.98752533,0.00010701,2]
[322970384,1713550079138,965.24,0.00010114,2]
[322970416,1713550232620,-1133.16129937,0.00011788,2]
[322970417,1713550232645,-1865.68799113,0.00011788,2]
[322970418,1713550232656,-500.0,0.00011789,3]
[322970419,1713550232665,-1993.92102893,0.00011816,2]
[322970420,1713550232675,-244.40551441,0.00011818,2]
[322970421,1713550232688,-782.10448559,0.00011818,2]
[322970422,1713550232697,-2000.0,0.00011873,3]
[322970423,1713550232708,-250.0,0.00011935,2]
[322970424,1713550232718,-150.0,0.00012066,2]
[322970425,1713550232727,-156.07046385,0.00012067,2]
[322970426,1713550232736,-7812.50746374,0.00012067,2]
[322970427,1713550232755,-677.45377569,0.00012067,2]
[322970428,1713550232783,-9996.60072057,0.00012067,2]
[322970429,1713550232792,-604.33872615,0.00012164,2]
[322970430,1713550232804,-601.6244,0.00012164,2]
[322970431,1713550232816,-140.03687385,0.00012164,2]
[322970432,1713550232825,-144.46016033,0.00012168,2]
[322970433,1713550232863,-12805.84983967,0.00012168,2]
[322970434,1713550232872,-150.99,0.00012168,2]
[322970435,1713550232881,-178.42,0.00012262,2]
[322970436,1713550232890,-1000.0,0.00012288,2]
[322970437,1713550232900,-965.24,0.00012378,2]
[322970438,1713550232910,-1857.15,0.00012418,2]
[322970439,1713550232919,-152.57,0.00012552,2]
[322970440,1713550232929,-1000.0,0.00012565,2]
[322970441,1713550232939,-166139.72877352,0.00012566,2]
[322970442,1713550232952,-1583.77903954,0.00012566,2]
[322970443,1713550232964,-2446.8424392,0.00012566,2]
[322970444,1713550232975,-510.44495541,0.00012566,2]
[322970445,1713550232987,-662.86429069,0.00012566,2]
[322970446,1713550232999,-380.93301649,0.00012566,2]
[322970451,1713550238362,-4459.3547,0.00011835,2]
[322970452,1713550238371,-14337.57678631,0.00012566,2]
[322970453,1713550238470,-359914.94977663,0.00012566,2]
[322970454,1713550238479,-499.99,0.00012567,2]
[322970455,1713550238489,-90508.4393014,0.00012567,2]
[322970456,1713550238498,-152.57,0.00012646,2]
[322970457,1713550238508,-166.19,0.00012653,2]
[322970458,1713550238517,-152.57,0.00012739,2]
[322970459,1713550238527,-152.57,0.00012833,2]
[322970460,1713550238536,-2104.37215187,0.00012911,2]
[322970461,1713550238545,-150.99,0.00012911,2]
[322970462,1713550238555,-152.57,0.00012926,2]
[322970463,1713550238565,-152.57,0.0001302,2]
[322970464,1713550238574,-152.57,0.00013113,2]
[322970465,1713550238584,-163.83,0.00013142,2]
[322970466,1713550238593,-152.57,0.00013206,2]
[322970467,1713550238602,-150.999999,0.00013306,2]
[322970468,1713550238611,-500.0,0.00013425,2]
[322970469,1713550238621,-284.497,0.00013493,2]
[322970470,1713550238630,-852.35175515,0.00013496,2]
[322970471,1713550238639,-852.35175513,0.00013548,2]
[322970472,1713550238649,-3285.5905084,0.00013577,2]
[322970473,1713550238658,-1000.0,0.0001359,2]
[322970474,1713550238667,-5639.846599,0.00013591,2]
[322970475,1713550238676,-172.16538027,0.00013593,2]
[322970476,1713550238685,-1035.76466558,0.00013593,2]
[322970477,1713550238694,-171.25018801,0.00013593,2]
[322970478,1713550238704,-100000.0,0.00013594,2]
[322970479,1713550238714,-5622.6178,0.00013596,2]
[322970480,1713550238723,-500.0,0.00013596,2]
[322970481,1713550238733,-245000.0,0.00013596,2]
[322970482,1713550238742,-852.35175513,0.00013599,2]
[322970483,1713550238751,-118510.39959779,0.0001369,4]
[322970484,1713550238760,-14117.98,0.00013693,2]
[322970485,1713550238769,-203.78155668,0.00013694,2]
[322970486,1713550238778,-14117.98,0.00013696,2]
[322970487,1713550238787,-1771.37,0.00013699,2]
[322970488,1713550238796,-1500.0,0.00013699,2]
[322970489,1713550238805,-2751.0,0.00013699,2]
[322970491,1713550238814,-287.24,0.00013699,2]
[322970492,1713550238823,-169.05,0.00013699,2]
[322970493,1713550238831,-1237.0,0.00013699,2]
[322970494,1713550238841,-750.0,0.000137,2]
[322970495,1713550238851,-1250.0,0.000137,2]
[322970496,1713550238860,-1000.0,0.00013824,2]
[322970497,1713550238869,-151.05,0.00014,2]
[322970498,1713550238878,-1035.76466547,0.00014117,2]
[322970499,1713550238887,-10000.0,0.0001421,2]
[322970500,1713550238896,-37669.0,0.00014453,2]
[322970501,1713550238906,-5890.0,0.00014453,2]
[322970502,1713550238915,-5726.0,0.00014453,2]
[322970503,1713550238924,-1735.0,0.00014453,2]
[322970504,1713550238933,-1055.0,0.00014453,2]
[322970505,1713550238942,-937.0,0.00014569,2]
[322970506,1713550238951,-1035.76466547,0.0001464,2]
[322970507,1713550238961,-965.24,0.00014642,2]
[322970508,1713550238971,-1237.0,0.00014658,2]
[322970509,1713550238980,-7500.0,0.00014834,2]
[322970510,1713550238989,-14117.98,0.00014862,2]
[322970511,1713550238998,-461.0,0.00014934,2]
[322970512,1713550239007,-1393.0,0.00014934,2]
[322970513,1713550239017,-2291.0,0.00014934,2]
[322970514,1713550239026,-969.0,0.00014934,2]
[322970515,1713550239035,-541.0,0.00014934,2]
[322970516,1713550239044,-1103.587,0.00014934,2]
[322970517,1713550239054,-1228.0,0.00014934,2]
[322970518,1713550239064,-807.0,0.00014934,2]
[322970519,1713550239074,-1950.0,0.00014934,2]
[322970520,1713550239083,-257.0,0.00014934,2]
[322970521,1713550239091,-436.0,0.00014934,2]
[322970522,1713550239100,-606.0,0.00014934,2]
[322970523,1713550239110,-3118.0,0.00014934,2]
[322970524,1713550239119,-150.0,0.00014934,2]
[322970525,1713550239128,-1472.997,0.00014934,2]
[322970526,1713550239138,-2427.0,0.00014934,2]
[322970527,1713550239147,-399.0,0.00014934,2]
[322970528,1713550239156,-214.0,0.00014934,2]
[322970529,1713550239165,-1639.0,0.00014934,2]
[322970530,1713550239175,-150.0,0.00014934,2]
[322970531,1713550239185,-208.214,0.00014934,2]
[322970532,1713550239196,-1140.0,0.00014934,2]
[322970533,1713550239205,-14117.98,0.00014967,2]
[322970534,1713550239214,-14117.98,0.00014999,2]
[322970535,1713550239224,-37622.11570607,0.00015,2]
[322970536,1713550239234,-4470.56238206,0.00015,2]
[322970537,1713550239243,-2776.0,0.000151,2]
[322970538,1713550239252,-1857.15,0.00015157,2]
[322970539,1713550239265,-1035.76466547,0.00015164,2]
[322970540,1713550239275,-163.83,0.00015332,2]
[322970541,1713550239285,-200.0,0.00015346,2]
[322970542,1713550239295,-1000.0,0.0001536,2]
[322970543,1713550239305,-633.66389617,0.00015498,2]
[322970544,1713550239315,-155.0,0.00015499,2]
[322970545,1713550239325,-283.51913614,0.00015499,2]
[322970546,1713550239334,-150.0,0.000155,2]
[322970547,1713550239343,-1237.0,0.00015617,2]
[322970548,1713550239353,-1035.76466547,0.00015687,2]
[322970549,1713550239362,-2879.922971,0.0001577,2]
[322970550,1713550239371,-167.27,0.00015831,2]
[322970551,1713550239381,-90869.87548636,0.0001588,2]
[322970552,1713550239390,-175.01098199,0.000159,2]
[322970553,1713550239400,-241.96832676,0.000159,2]
[322970554,1713550239410,-497.81104565,0.000159,2]
[322970555,1713550239419,-484.85079368,0.000159,2]
[322970556,1713550239428,-2879.922971,0.00015968,2]
[322970557,1713550239438,-151.05,0.0001599,2]
[322970558,1713550239447,-151.05,0.0001599,2]
[322970559,1713550239457,-14117.98,0.00015999,2]
[322970560,1713550239467,-14117.98,0.00015999,2]
[322970561,1713550239476,-155.0,0.00016,2]
[322970562,1713550239485,-39567.02534062,0.00016,2]
[322970563,1713550239511,-853.71869855,0.00016,2]
[322970564,1713550239522,-872.70044043,0.00016,2]
[322970565,1713550239534,-4153.96485394,0.00016,2]
[322970566,1713550239560,-5423.88983774,0.00016,2]
[322970567,1713550239571,-275.697,0.00016,2]
[322970568,1713550239586,-338.07789,0.00016,2]
[322970591,1713550240314,-406.7734298,0.00016,2]
[322970597,1713550240372,-1611313.02013242,0.00016,2]
[322970600,1713550240382,-12602.86369972,0.00016,2]
[322970602,1713550240392,-247.1654849,0.00016,2]
[322970603,1713550240401,-150.0,0.00016,2]
[322970605,1713550240410,-163.0,0.0001604,2]
[322970607,1713550240420,-1000.0,0.00016049,2]
[322970609,1713550240430,-10000.0,0.00016064,2]
[322970611,1713550240438,-14117.98,0.00016163,2]
[322970613,1713550240448,-544.144929,0.00016164,2]
[322970615,1713550240458,-2879.922971,0.00016165,2]
[322970617,1713550240467,-4354.1,0.000162,2]
[322970619,1713550240476,-8000.0,0.000162,2]
[322970621,1713550240486,-1507.13,0.0001621,2]
[322970623,1713550240495,-1035.76466547,0.00016211,2]
[322970625,1713550240504,-200.0,0.00016225,2]
[322970627,1713550240514,-1000.0,0.00016225,2]
[322970629,1713550240523,-500.0,0.00016225,2]
[322970631,1713550240532,-500.0,0.00016225,2]
[322970633,1713550240541,-200.0,0.00016225,2]
[322970635,1713550240551,-150.0,0.000163,2]
[322970637,1713550240560,-2879.922971,0.00016362,2]
[322970639,1713550240569,-1000.0,0.00016401,2]
[322970641,1713550240579,-2575.3889,0.00016436,2]
[322970643,1713550240588,-14117.98,0.00016437,2]
[322970645,1713550240597,-14117.98,0.00016437,2]
[322970646,1713550240607,-14117.98,0.00016437,2]
[322970648,1713550240616,-14117.98,0.00016437,2]
[322970649,1713550240626,-357.42922166,0.00016438,2]
[322970650,1713550240635,-500.0,0.00016438,2]
[322970651,1713550240645,-524.96673129,0.00016438,2]
[322970652,1713550240654,-500.0,0.00016438,2]
[322970653,1713550240664,-500.0,0.00016438,2]
[322970654,1713550240673,-500.0,0.00016438,2]
[322970655,1713550240683,-500.0,0.00016438,2]
[322970656,1713550240693,-737.6,0.00016438,2]
[322970657,1713550240702,-500.0,0.00016438,2]
[322970658,1713550240716,-500.0,0.00016438,2]
[322970659,1713550240726,-510.03,0.00016438,2]
[322970660,1713550240735,-824.7,0.00016438,2]
[322970661,1713550240745,-500.0,0.00016438,2]
[322970662,1713550240754,-1028.85,0.00016438,2]
[322970663,1713550240763,-500.0,0.00016438,2]
[322970664,1713550240772,-669.58,0.00016438,2]
[322970665,1713550240781,-500.0,0.00016438,2]
[322970666,1713550240790,-500.0,0.00016438,2]
[322970667,1713550240799,-500.0,0.00016438,2]
[322970668,1713550240810,-843.86,0.00016438,2]
[322970670,1713550240818,-500.0,0.00016438,2]
[322970672,1713550240827,-500.0,0.00016438,2]
[322970674,1713550240837,-500.0,0.00016438,2]
[322970676,1713550240846,-500.0,0.00016438,2]
[322970678,1713550240854,-785.89,0.00016438,2]
[322970679,1713550240863,-500.0,0.00016438,2]
[322970682,1713550240872,-500.0,0.00016438,2]
[322970683,1713550240882,-500.0,0.00016438,2]
[322970685,1713550240891,-729.76,0.00016438,2]
[322970687,1713550240900,-500.0,0.00016438,2]
[322970689,1713550240909,-511.10626029,0.00016438,2]
[322970691,1713550240918,-1041.49,0.00016438,2]
[322970692,1713550240927,-500.0,0.00016438,2]
[322970693,1713550240936,-864.76,0.00016438,2]
[322970694,1713550240945,-500.0,0.00016438,2]
[322970695,1713550240957,-500.0,0.00016438,2]
[322970696,1713550240966,-500.0,0.00016438,2]
[322970697,1713550240975,-500.0,0.00016438,2]
[322970698,1713550240985,-500.0,0.00016438,2]
[322970699,1713550240994,-524.99,0.00016438,2]
[322970700,1713550241003,-500.0,0.00016438,2]
[322970701,1713550241012,-500.0,0.00016438,2]
[322970702,1713550241021,-500.0,0.00016438,2]
[322970703,1713550241031,-821.38,0.00016438,2]
[322970704,1713550241040,-500.0,0.00016438,2]
[322970705,1713550241050,-500.0,0.00016438,2]
[322970706,1713550241059,-541.76,0.00016438,2]
[322970707,1713550241070,-500.0,0.00016438,2]
[322970708,1713550241079,-1292.38,0.00016438,2]
[322970709,1713550241089,-500.0,0.00016438,2]
[322970710,1713550241098,-500.0,0.00016438,2]
[322970711,1713550241108,-568.29,0.00016438,2]
[322970712,1713550241117,-500.0,0.00016438,2]
[322970713,1713550241126,-500.0,0.00016438,2]
[322970714,1713550241135,-500.0,0.00016438,2]
[322970715,1713550241145,-500.0,0.00016438,2]
[322970716,1713550241155,-1152.89,0.00016438,2]
[322970717,1713550241164,-500.0,0.00016438,2]
[322970718,1713550241174,-553.82,0.00016438,2]
[322970719,1713550241184,-500.0,0.00016438,2]
[322970720,1713550241197,-792.7,0.00016438,2]
[322970721,1713550241209,-1140.35,0.00016438,2]
[322970722,1713550241218,-500.0,0.00016438,2]
[322970723,1713550241227,-500.0,0.00016438,2]
[322970724,1713550241236,-500.0,0.00016438,2]
[322970725,1713550241245,-624.37,0.00016438,2]
[322970726,1713550241254,-545.52,0.00016438,2]
[322970727,1713550241265,-673.43,0.00016438,2]
[322970728,1713550241275,-840.66,0.00016438,2]
[322970729,1713550241285,-500.0,0.00016438,2]
[322970730,1713550241295,-500.0,0.00016438,2]
[322970731,1713550241305,-500.0,0.00016438,2]
[322970732,1713550241315,-500.0,0.00016438,2]
[322970733,1713550241324,-500.0,0.00016438,2]
[322970734,1713550241335,-500.0,0.00016438,2]
[322970735,1713550241345,-485.41150995,0.00016438,2]
[322970736,1713550241354,-1632.9,0.00016438,2]
[322970737,1713550241364,-709.84,0.00016438,2]
[322970738,1713550241374,-624.85,0.00016438,2]
[322970739,1713550241384,-601.09,0.00016438,2]
[322970740,1713550241393,-500.0,0.00016438,2]
[322970741,1713550241403,-500.0,0.00016438,2]
[322970742,1713550241412,-500.0,0.00016438,2]
[322970743,1713550241421,-500.0,0.00016438,2]
[322970744,1713550241431,-500.0,0.00016438,2]
[322970745,1713550241440,-626.24,0.00016438,2]
[322970746,1713550241450,-500.0,0.00016438,2]
[322970747,1713550241462,-678.02,0.00016438,2]
[322970748,1713550241471,-500.0,0.00016438,2]
[322970749,1713550241480,-917.02,0.00016438,2]
[322970750,1713550241490,-500.0,0.00016438,2]
[322970751,1713550241499,-500.0,0.00016438,2]
[322970752,1713550241508,-722.61,0.00016438,2]
[322970753,1713550241518,-557.42,0.00016438,2]
[322970754,1713550241527,-500.0,0.00016438,2]
[322970755,1713550241536,-500.0,0.00016438,2]
[322970756,1713550241546,-500.0,0.00016438,2]
[322970757,1713550241555,-500.0,0.00016438,2]
[322970758,1713550241564,-500.0,0.00016438,2]
[322970759,1713550241573,-634.15,0.00016438,2]
[322970760,1713550241618,-757.29,0.00016438,2]
[322970761,1713550241627,-564.97,0.00016438,2]
[322970762,1713550241637,-500.0,0.00016438,2]
[322970763,1713550241646,-500.0,0.00016438,2]
[322970764,1713550241655,-500.0,0.00016438,2]
[322970765,1713550241665,-500.0,0.00016438,2]
[322970766,1713550241675,-500.0,0.00016438,2]
[322970767,1713550241685,-500.0,0.00016438,2]
[322970768,1713550241694,-500.0,0.00016438,2]
[322970769,1713550241704,-500.0,0.00016438,2]
[322970770,1713550241714,-500.0,0.00016438,2]
[322970771,1713550241723,-500.0,0.00016438,2]
[322970772,1713550241733,-1295.17,0.00016438,2]
[322970773,1713550241743,-1264.11,0.00016438,2]
[322970774,1713550241752,-500.0,0.00016438,2]
[322970775,1713550241762,-500.0,0.00016438,2]
[322970776,1713550241772,-500.0,0.00016438,2]
[322970777,1713550241782,-833.84,0.00016438,2]
[322970778,1713550241791,-1172.05,0.00016438,2]
[322970779,1713550241801,-500.0,0.00016438,2]
[322970780,1713550241812,-675.87,0.00016438,2]
[322970781,1713550241822,-500.0,0.00016438,2]
[322970782,1713550241833,-500.0,0.00016438,2]
[322970783,1713550241844,-507.07,0.00016438,2]
[322970784,1713550241853,-1494.08,0.00016438,2]
[322970785,1713550241864,-630.61,0.00016438,2]
[322970786,1713550241875,-628.61,0.00016438,2]
[322970787,1713550241885,-622.74,0.00016438,2]
[322970788,1713550241894,-500.0,0.00016438,2]
[322970789,1713550241904,-560.64,0.00016438,2]
[322970790,1713550241913,-500.0,0.00016438,2]
[322970791,1713550241923,-632.47,0.00016438,2]
[322970792,1713550241932,-500.0,0.00016438,2]
[322970793,1713550241942,-500.0,0.00016438,2]
[322970794,1713550241951,-500.0,0.00016438,2]
[322970795,1713550241964,-298.88917645,0.00016438,2]
[322970796,1713550241973,-500.0,0.00016438,2]
[322970797,1713550241983,-519.62,0.00016438,2]
[322970798,1713550241993,-500.0,0.00016438,2]
[322970799,1713550242002,-500.0,0.00016438,2]
[322970800,1713550242012,-500.0,0.00016438,2]
[322970801,1713550242022,-778.12,0.00016438,2]
[322970802,1713550242031,-500.0,0.00016438,2]
[322970803,1713550242039,-500.0,0.00016438,2]
[322970804,1713550242048,-500.0,0.00016438,2]
[322970805,1713550242058,-500.0,0.00016438,2]
[322970806,1713550242067,-769.94,0.00016438,2]
[322970807,1713550242077,-500.0,0.00016438,2]
[322970808,1713550242087,-500.0,0.00016438,2]
[322970809,1713550242096,-500.0,0.00016438,2]
[322970810,1713550242106,-918.98,0.00016438,2]
[322970811,1713550242115,-1119.71,0.00016438,2]
[322970812,1713550242124,-500.0,0.00016438,2]
[322970813,1713550242134,-678.94,0.00016438,2]
[322970814,1713550242144,-1195.54,0.00016438,2]
[322970815,1713550242154,-500.0,0.00016438,2]
[322970816,1713550242163,-500.0,0.00016438,2]
[322970817,1713550242173,-546.45,0.00016438,2]
[322970818,1713550242183,-713.09,0.00016438,2]
[322970819,1713550242197,-1108.92,0.00016438,2]
[322970820,1713550242207,-628.66,0.00016438,2]
[322970821,1713550242217,-500.0,0.00016438,2]
[322970822,1713550242227,-500.0,0.00016438,2]
[322970823,1713550242236,-500.0,0.00016438,2]
[322970824,1713550242246,-665.31,0.00016438,2]
[322970825,1713550242255,-500.0,0.00016438,2]
[322970826,1713550242266,-500.0,0.00016438,2]
[322970827,1713550242276,-500.0,0.00016438,2]
[322970828,1713550242286,-803.88,0.00016438,2]
[322970829,1713550242295,-774.86,0.00016438,2]
[322970830,1713550242304,-500.0,0.00016438,2]
[322970831,1713550242315,-500.0,0.00016438,2]
[322970832,1713550242324,-619.43,0.00016438,2]
[322970833,1713550242334,-500.0,0.00016438,2]
[322970834,1713550242343,-500.0,0.00016438,2]
[322970835,1713550242354,-500.0,0.00016438,2]
[322970836,1713550242363,-1238.09,0.00016438,2]
[322970837,1713550242372,-812.22,0.00016438,2]
[322970838,1713550242610,-635.57,0.00016438,2]
[322970839,1713550242662,-500.0,0.00016438,2]
[322970840,1713550242672,-500.0,0.00016438,2]
[322970841,1713550242681,-500.0,0.00016438,2]
[322970842,1713550242690,-1066.58,0.00016438,2]
[322970843,1713550242699,-927.3,0.00016438,2]
[322970844,1713550242710,-500.0,0.00016438,2]
[322970845,1713550242720,-500.0,0.00016438,2]
[322970846,1713550242729,-500.0,0.00016438,2]
[322970847,1713550242738,-1052.06,0.00016438,2]
[322970848,1713550242748,-746.87,0.00016438,2]
[322970849,1713550242757,-1123.59,0.00016438,2]
[322970850,1713550242767,-500.0,0.00016438,2]
[322970851,1713550242776,-500.0,0.00016438,2]
[322970852,1713550242786,-1110.79,0.00016438,2]